fUSD/lending_fUSD_20250513
["ID","MTS","AMOUNT","RATE_DAILY","PERIOD"]
[360928648,1747152638045,-1326.4087777,0.00010944,2]
[360928650,1747152638055,-151.0,0.00010951,2]
[360928652,1747152638065,-668.65185757,0.00010951,2]
[360928654,1747152638075,-287.61899177,0.00010951,2]
[360928656,1747152638085,-400.0,0.00010958,2]
[360928658,1747152638094,-400.0,0.00010958,2]
[360928660,1747152638103,-400.0,0.00010958,2]
[360928662,1747152638112,-500.1,0.00010958,2]
[360928664,1747152638121,-400.0,0.00010958,2]
[360928666,1747152638131,-400.0,0.00010958,2]
[360928667,1747152638140,-400.0,0.00010958,2]
[360928669,1747152638150,-400.0,0.00010958,2]
[360928671,1747152638159,-400.0,0.00010958,2]
[360928673,1747152638169,-590.63,0.00010958,2]
[360928675,1747152638178,-506.08828725,0.00010958,2]
[360928677,1747152638187,-400.0,0.00010958,2]
[360928679,1747152638197,-400.0,0.00010958,2]
[360928681,1747152638206,-838.87,0.00010958,2]
[360928683,1747152638215,-400.0,0.00010958,2]
[360928685,1747152638224,-400.0,0.00010958,2]
[360928687,1747152638234,-1285.83,0.00010958,2]
[360928689,1747152638244,-427.51,0.00010958,2]
[360928690,1747152638254,-400.0,0.00010958,2]
[360928692,1747152638264,-400.0,0.00010958,2]
[360928694,1747152638273,-400.0,0.00010958,2]
[360928696,1747152638282,-400.0,0.00010958,2]
[360928698,1747152638291,-400.0,0.00010958,2]
[360928700,1747152638300,-400.0,0.00010958,2]
[360928702,1747152638310,-400.0,0.00010958,2]
[360928704,1747152638319,-400.0,0.00010958,2]
[360928706,1747152638328,-400.0,0.00010958,2]
[360928708,1747152638337,-741.36,0.00010958,2]
[360928709,1747152638346,-758.32,0.00010958,2]
[360928711,1747152638355,-400.0,0.00010958,2]
[360928713,1747152638365,-400.0,0.00010958,2]
[360928715,1747152638374,-400.0,0.00010958,2]
[360928717,1747152638383,-400.0,0.00010958,2]
[360928719,1747152638393,-400.0,0.00010958,2]
[360928721,1747152638402,-400.0,0.00010958,2]
[360928723,1747152638412,-602.94,0.00010958,2]
[360928725,1747152638421,-400.0,0.00010958,2]
[360928727,1747152638431,-400.0,0.00010958,2]
[360928729,1747152638440,-400.0,0.00010958,2]
[360928731,1747152638451,-832.75,0.00010958,2]
[360928733,1747152638460,-414.33,0.00010958,2]
[360928735,1747152638470,-400.0,0.00010958,2]
[360928736,1747152638480,-400.0,0.00010958,2]
[360928738,1747152638492,-684.36,0.00010958,2]
[360928740,1747152638501,-848.58,0.00010958,2]
[360928742,1747152638511,-400.0,0.00010958,2]
[360928744,1747152638521,-400.0,0.00010958,2]
[360928746,1747152638531,-478.97979329,0.00010958,2]
[360928748,1747152638540,-400.0,0.00010958,2]
[360928750,1747152638549,-400.0,0.00010958,2]
[360928752,1747152638558,-412.35,0.00010958,2]
[360928754,1747152638568,-400.0,0.00010958,2]
[360928756,1747152638577,-438.98119258,0.00010958,2]
[360928758,1747152638586,-400.0,0.00010958,2]
[360928760,1747152638595,-400.0,0.00010958,2]
[360928762,1747152638605,-400.0,0.00010958,2]
[360928763,1747152638614,-501.76,0.00010958,2]
[360928765,1747152638623,-400.0,0.00010958,2]
[360928767,1747152638632,-714.56,0.00010958,2]
[360928769,1747152638641,-285.06159729,0.00010958,2]
[360928771,1747152638651,-400.0,0.00010958,2]
[360928773,1747152638661,-400.0,0.00010958,2]
[360928775,1747152638671,-400.0,0.00010958,2]
[360928777,1747152638680,-400.0,0.00010958,2]
[360928779,1747152638689,-500.0,0.00010958,2]
[360928781,1747152638701,-1379.47,0.00010958,2]
[360928783,1747152638710,-400.0,0.00010958,2]
[360928785,1747152638719,-400.0,0.00010958,2]
[360928787,1747152638728,-1095.42,0.00010958,2]
[360928789,1747152638738,-496.26035296,0.00010958,2]
[360928791,1747152638747,-400.0,0.00010958,2]
[360928793,1747152638756,-482.69,0.00010958,2]
[360928794,1747152638765,-400.0,0.00010958,2]
[360928796,1747152638775,-400.0,0.00010958,2]
[360928798,1747152638784,-400.0,0.00010958,2]
[360928800,1747152638794,-400.63,0.00010958,2]
[360928802,1747152638803,-399.55820115,0.00010958,2]
[360928804,1747152638812,-400.0,0.00010958,2]
[360928806,1747152638822,-400.0,0.00010958,2]
[360928808,1747152638832,-400.0,0.00010958,2]
[360928810,1747152638841,-400.0,0.00010958,2]
[360928812,1747152638850,-400.0,0.00010958,2]
[360928814,1747152638859,-400.0,0.00010958,2]
[360928816,1747152638868,-400.0,0.00010958,2]
[360928817,1747152638878,-400.0,0.00010958,2]
[360928819,1747152638887,-400.0,0.00010958,2]
[360928821,1747152638896,-400.0,0.00010958,2]
[360928823,1747152638906,-400.0,0.00010958,2]
[360928825,1747152638915,-2163.8,0.00010958,2]
[360928827,1747152638925,-400.0,0.00010958,2]
[360928829,1747152638935,-439.61113703,0.00010958,2]
[360928831,1747152638944,-479.58418964,0.00010958,2]
[360928833,1747152638954,-400.0,0.00010958,2]
[360928835,1747152638966,-1627.84,0.00010958,2]
[360928837,1747152638984,-400.0,0.00010958,2]
[360928839,1747152639003,-248.80061005,0.00010958,2]
[360928841,1747152639024,-973.02,0.00010958,2]
[360928843,1747152639039,-400.0,0.00010958,2]
[360928845,1747152639048,-400.0,0.00010958,2]
[360928846,1747152639058,-541.83,0.00010958,2]
[360928848,1747152639069,-400.0,0.00010958,2]
[360928850,1747152639078,-400.0,0.00010958,2]
[360928852,1747152639088,-1184.56,0.00010958,2]
[360928854,1747152639099,-400.0,0.00010958,2]
[360928856,1747152639109,-1016.23,0.00010958,2]
[360928858,1747152639118,-521.72,0.00010958,2]
[360928860,1747152639127,-335.42119416,0.00010958,2]
[360928862,1747152639153,-64.57880584,0.00010958,2]
[360928863,1747152639163,-400.0,0.00010958,2]
[360928864,1747152639173,-72.5512227,0.00010958,2]
[360928928,1747152639905,-1438.0785419,0.00010958,2]
[360929053,1747152640862,-290.42619056,0.00010958,2]
[360929055,1747152640874,-256.15532,0.00010958,2]
[360929057,1747152640885,-1919.88872484,0.00010958,2]
[360929059,1747152640895,-432.48,0.00010958,2]
[360929061,1747152640905,-400.0,0.00010958,2]
[360929063,1747152640915,-247.63127516,0.00010958,2]
[360929065,1747152640927,-155.11919764,0.00010958,2]
[360929067,1747152640936,-400.0,0.00010958,2]
[360929069,1747152640946,-1604.09,0.00010958,2]
[360929071,1747152640955,-400.0,0.00010958,2]
[360929073,1747152640967,-400.0,0.00010958,2]
[360929075,1747152640977,-589.9,0.00010958,2]
[360929077,1747152640987,-400.0,0.00010958,2]
[360929104,1747152641263,-400.0,0.00010958,2]
[360929106,1747152641273,-472.52539345,0.00010958,2]
[360929108,1747152641283,-400.0,0.00010958,2]
[360929110,1747152641294,-400.0,0.00010958,2]
[360929112,1747152641304,-400.0,0.00010958,2]
[360929114,1747152641314,-400.0,0.00010958,2]
[360929116,1747152641323,-400.0,0.00010958,2]
[360929118,1747152641333,-400.0,0.00010958,2]
[360929120,1747152641343,-400.0,0.00010958,2]
[360929122,1747152641352,-400.0,0.00010958,2]
[360929124,1747152641362,-400.0,0.00010958,2]
[360929126,1747152641372,-400.0,0.00010958,2]
[360929128,1747152641381,-802.4,0.00010958,2]
[360929130,1747152641391,-975.16,0.00010958,2]
[360929132,1747152641401,-400.0,0.00010958,2]
[360929134,1747152641410,-1320.3,0.00010958,2]
[360929136,1747152641419,-400.0,0.00010958,2]
[360929138,1747152641428,-338.4,0.00010958,2]
[360929140,1747152641437,-706.51,0.00010958,2]
[360929142,1747152641448,-400.0,0.00010958,2]
[360929144,1747152641458,-570.17,0.00010958,2]
[360929146,1747152641468,-439.55869544,0.00010958,2]
[360929147,1747152641477,-400.0,0.00010958,2]
[360929149,1747152641487,-199.25042153,0.00010958,2]
[360929151,1747152641498,-400.0,0.00010958,2]
[360929153,1747152641508,-1974.94,0.00010958,2]
[360929155,1747152641517,-400.0,0.00010958,2]
[360929157,1747152641526,-400.0,0.00010958,2]
[360929159,1747152641536,-400.0,0.00010958,2]
[360929161,1747152641545,-400.0,0.00010958,2]
[360929163,1747152641555,-780.94,0.00010958,2]
[360929165,1747152641564,-400.0,0.00010958,2]
[360929167,1747152641573,-413.0,0.00010958,2]
[360929169,1747152641582,-400.0,0.00010958,2]
[360929171,1747152641591,-400.0,0.00010958,2]
[360929173,1747152641601,-400.0,0.00010958,2]
[360929175,1747152641610,-2302.21,0.00010958,2]
[360929177,1747152641620,-417.09,0.00010958,2]
[360929179,1747152641629,-400.0,0.00010958,2]
[360929181,1747152641639,-400.0,0.00010958,2]
[360929182,1747152641649,-512.64,0.00010958,2]
[360929184,1747152641658,-411.77306878,0.00010958,2]
[360929186,1747152641667,-400.0,0.00010958,2]
[360929188,1747152641676,-400.0,0.00010958,2]
[360929190,1747152641686,-405.9371661,0.00010958,2]
[360929192,1747152641696,-400.0,0.00010958,2]
[360929194,1747152641706,-406.61589297,0.00010958,2]
[360929196,1747152641716,-400.0,0.00010958,2]
[360929198,1747152641725,-400.0,0.00010958,2]
[360929200,1747152641735,-404.47988098,0.00010958,2]
[360929202,1747152641745,-400.0,0.00010958,2]
[360929204,1747152641755,-1703.95,0.00010958,2]
[360929206,1747152641764,-400.0,0.00010958,2]
[360929208,1747152641773,-400.0,0.00010958,2]
[360929210,1747152641782,-400.0,0.00010958,2]
[360929212,1747152641792,-413.26095271,0.00010958,2]
[360929214,1747152641801,-400.0,0.00010958,2]
[360929216,1747152641811,-410.94779619,0.00010958,2]
[360929218,1747152641820,-400.0,0.00010958,2]
[360929220,1747152641829,-543.63,0.00010958,2]
[360929222,1747152641839,-400.0,0.00010958,2]
[360929223,1747152641848,-399.98076293,0.00010958,2]
[360929225,1747152641858,-400.0,0.00010958,2]
[360929227,1747152641867,-400.0,0.00010958,2]
[360929229,1747152641877,-400.0,0.00010958,2]
[360929231,1747152641887,-459.91,0.00010958,2]
[360929233,1747152641897,-999.99,0.00010958,2]
[360929235,1747152641906,-519.07791083,0.00010958,2]
[360929237,1747152641915,-400.0,0.00010958,2]
[360929239,1747152641925,-1509.28,0.00010958,2]
[360929241,1747152641934,-400.0,0.00010958,2]
[360929243,1747152641943,-411.00018005,0.00010958,2]
[360929244,1747152641955,-400.0,0.00010958,2]
[360929246,1747152641967,-491.06273792,0.00010958,2]
[360929248,1747152641975,-400.0,0.00010958,2]
[360929249,1747152641985,-400.0,0.00010958,2]
[360929251,1747152641994,-400.0,0.00010958,2]
[360929253,1747152642004,-410.26154592,0.00010958,2]
[360929255,1747152642014,-428.83208242,0.00010958,2]
[360929257,1747152642023,-400.0,0.00010958,2]
[360929259,1747152642032,-406.03398949,0.00010958,2]
[360929261,1747152642043,-455.67280467,0.00010958,2]
[360929263,1747152642051,-400.0,0.00010958,2]
[360929265,1747152642060,-400.0,0.00010958,2]
[360929267,1747152642069,-346.96,0.00010958,2]
[360929268,1747152642078,-500.0,0.00010958,2]
[360929270,1747152642086,-500.0,0.00010958,2]
[360929272,1747152642095,-505.24,0.00010958,2]
[360929274,1747152642105,-407.59461059,0.00010958,2]
[360929276,1747152642114,-807.31,0.00010958,2]
[360929278,1747152642122,-400.0,0.00010958,2]
[360929280,1747152642131,-400.0,0.00010958,2]
[360929282,1747152642140,-400.0,0.00010958,2]
[360929284,1747152642148,-405.84753317,0.00010958,2]
[360929285,1747152642157,-400.0,0.00010958,2]
[360929287,1747152642166,-400.0,0.00010958,2]
[360929289,1747152642175,-400.0,0.00010958,2]
[360929291,1747152642185,-405.93574815,0.00010958,2]
[360929293,1747152642194,-427.99,0.00010958,2]
[360929295,1747152642205,-400.0,0.00010958,2]
[360929297,1747152642215,-400.0,0.00010958,2]
[360929299,1747152642224,-1202.29,0.00010958,2]
[360929301,1747152642234,-400.0,0.00010958,2]
[360929303,1747152642245,-400.0,0.00010958,2]
[360929305,1747152642254,-400.0,0.00010958,2]
[360929307,1747152642264,-414.49069278,0.00010958,2]
[360929309,1747152642274,-400.0,0.00010958,2]
[360929310,1747152642283,-400.0,0.00010958,2]
[360929312,1747152642292,-400.0,0.00010958,2]
[360929314,1747152642302,-418.31065337,0.00010958,2]
[360929316,1747152642311,-512.10735763,0.00010958,2]
[360929318,1747152642321,-1462.07,0.00010958,2]
[360929320,1747152642330,-400.0,0.00010958,2]
[360929322,1747152642339,-400.0,0.00010958,2]
[360929324,1747152642349,-400.0,0.00010958,2]
[360929326,1747152642358,-400.0,0.00010958,2]
[360929328,1747152642367,-400.0,0.00010958,2]
[360929330,1747152642376,-400.0,0.00010958,2]
[360929331,1747152642386,-534.21,0.00010958,2]
[360929333,1747152642395,-434.23,0.00010958,2]
[360929335,1747152642404,-400.0,0.00010958,2]
[360929337,1747152642414,-10498.129021,0.00010958,2]
[360929339,1747152642423,-417.597637,0.00010958,2]
[360929341,1747152642432,-400.0,0.00010958,2]
[360929343,1747152642442,-1593.77,0.00010958,2]
[360929345,1747152642456,-400.0,0.00010958,2]
[360929347,1747152642465,-1281.03,0.00010958,2]
[360929349,1747152642474,-400.0,0.00010958,2]
[360929351,1747152642482,-400.0,0.00010958,2]
[360929352,1747152642490,-400.0,0.00010958,2]
[360929354,1747152642498,-400.0,0.00010958,2]
[360929356,1747152642507,-400.0,0.00010958,2]
[360929359,1747152642515,-400.0,0.00010958,2]
[360929361,1747152642524,-400.0,0.00010958,2]
[360929363,1747152642532,-1564.86,0.00010958,2]
[360929365,1747152642542,-178.09986033,0.00010958,2]
[360929367,1747152642552,-861.5,0.00010958,2]
[360929369,1747152642562,-400.0,0.00010958,2]
[360929371,1747152642571,-400.0,0.00010958,2]
[360929372,1747152642580,-531.62,0.00010958,2]
[360929374,1747152642590,-526.82,0.00010958,2]
[360929376,1747152642599,-400.0,0.00010958,2]
[360929377,1747152642608,-400.0,0.00010958,2]
[360929379,1747152642618,-300.80642121,0.00010958,2]
[360929381,1747152642627,-400.0,0.00010958,2]
[360929383,1747152642636,-400.0,0.00010958,2]
[360929385,1747152642646,-400.0,0.00010958,2]
[360929387,1747152642656,-691.75,0.00010958,2]
[360929389,1747152642665,-537.2,0.00010958,2]
[360929391,1747152642675,-150.91924232,0.00010958,2]
[360929393,1747152642684,-400.0,0.00010958,2]
[360929395,1747152642694,-620.13376,0.00010958,2]
[360929397,1747152642705,-400.0,0.00010958,2]
[360929399,1747152642714,-716.0,0.00010958,2]
[360929401,1747152642725,-400.0,0.00010958,2]
[360929403,1747152642734,-687.32,0.00010958,2]
[360929404,1747152642743,-400.0,0.00010958,2]
[360929406,1747152642751,-478.11,0.00010958,2]
[360929408,1747152642760,-400.0,0.00010958,2]
[360929410,1747152642769,-400.0,0.00010958,2]
[360929412,1747152642778,-515.26,0.00010958,2]
[360929414,1747152642787,-400.0,0.00010958,2]
[360929416,1747152642795,-400.0,0.00010958,2]
[360929418,1747152642804,-467.21,0.00010958,2]
[360929419,1747152642813,-723.77,0.00010958,2]
[360929421,1747152642821,-400.0,0.00010958,2]
[360929423,1747152642831,-400.0,0.00010958,2]
[360929425,1747152642840,-400.0,0.00010958,2]
[360929427,1747152642850,-400.0,0.00010958,2]
[360929429,1747152642860,-400.0,0.00010958,2]
[360929431,1747152642870,-400.0,0.00010958,2]
[360929433,1747152642879,-479.33,0.00010958,2]
[360929434,1747152642888,-400.0,0.00010958,2]
[360929436,1747152642897,-601.23,0.00010958,2]
[360929438,1747152642907,-400.0,0.00010958,2]
[360929440,1747152642917,-400.0,0.00010958,2]
[360929442,1747152642927,-400.0,0.00010958,2]
[360929444,1747152642936,-415.77115238,0.00010958,2]
[360929446,1747152642945,-400.0,0.00010958,2]
[360929448,1747152642958,-400.0,0.00010958,2]
[360929450,1747152642971,-400.0,0.00010958,2]
[360929452,1747152642981,-400.0,0.00010958,2]
[360929454,1747152642991,-400.0,0.00010958,2]
[360929456,1747152643000,-400.0,0.00010958,2]
[360929458,1747152643011,-469.42472891,0.00010958,2]
[360929460,1747152643020,-400.0,0.00010958,2]
[360929462,1747152643029,-623.76,0.00010958,2]
[360929464,1747152643039,-622.61,0.00010958,2]
[360929465,1747152643048,-400.0,0.00010958,2]
[360929467,1747152643058,-902.6,0.00010958,2]
[360929469,1747152643067,-1131.48,0.00010958,2]
[360929471,1747152643076,-617.96,0.00010958,2]
[360929473,1747152643086,-400.0,0.00010958,2]
[360929475,1747152643095,-400.0,0.00010958,2]
[360929477,1747152643105,-400.0,0.00010958,2]
[360929479,1747152643114,-151.8079404,0.00010958,2]
[360929481,1747152643123,-400.0,0.00010958,2]
[360929483,1747152643134,-400.0,0.00010958,2]
[360929485,1747152643143,-3492.81,0.00010958,2]
[360929487,1747152643152,-400.0,0.00010958,2]
[360929489,1747152643162,-2276.08,0.00010958,2]
[360929491,1747152643171,-242.99808738,0.00010958,2]
[360929493,1747152643181,-400.0,0.00010958,2]
[360929495,1747152643190,-432.25,0.00010958,2]
[360929496,1747152643202,-642.99,0.00010958,2]
[360929498,1747152643211,-400.0,0.00010958,2]
[360929500,1747152643221,-1488.71,0.00010958,2]
[360929502,1747152643230,-766.94,0.00010958,2]
[360929504,1747152643240,-2019.78,0.00010958,2]
[360929506,1747152643250,-428.65,0.00010958,2]
[360929508,1747152643260,-400.0,0.00010958,2]
[360929510,1747152643269,-400.0,0.00010958,2]
[360929512,1747152643279,-400.0,0.00010958,2]
[360929514,1747152643289,-400.0,0.00010958,2]
[360929516,1747152643298,-400.0,0.00010958,2]
[360929518,1747152643308,-400.0,0.00010958,2]
[360929520,1747152643317,-400.0,0.00010958,2]
[360929522,1747152643326,-836.89,0.00010958,2]
[360929524,1747152643335,-2603.35,0.00010958,2]
[360929526,1747152643344,-481.43,0.00010958,2]
[360929527,1747152643353,-500.0,0.00010958,2]
[360929529,1747152643363,-500.0,0.00010958,2]
[360929531,1747152643372,-500.0,0.00010958,2]
[360929533,1747152643381,-400.0,0.00010958,2]
[360929535,1747152643391,-400.0,0.00010958,2]
[360929537,1747152643401,-400.0,0.00010958,2]
[360929539,1747152643410,-400.0,0.00010958,2]
[360929541,1747152643419,-2579.49,0.00010958,2]
[360929543,1747152643428,-400.0,0.00010958,2]
[360929545,1747152643438,-2646.58,0.00010958,2]
[360929547,1747152643449,-400.0,0.00010958,2]
[360929549,1747152643459,-1234.44,0.00010958,2]
[360929551,1747152643468,-400.0,0.00010958,2]
[360929552,1747152643478,-597.9,0.00010958,2]
[360929554,1747152643488,-400.0,0.00010958,2]
[360929557,1747152643506,-400.0,0.00010958,2]
[360929559,1747152643519,-400.0,0.00010958,2]
[360929561,1747152643528,-594.39,0.00010958,2]
[360929563,1747152643538,-400.0,0.00010958,2]
[360929565,1747152643547,-400.0,0.00010958,2]
[360929567,1747152643556,-400.0,0.00010958,2]
[360929569,1747152643566,-3149.45,0.00010958,2]
[360929571,1747152643577,-2400.88,0.00010958,2]
[360929573,1747152643586,-274.20711542,0.00010958,2]
[360929575,1747152643596,-2999.8,0.00010958,2]
[360929577,1747152643605,-400.0,0.00010958,2]
[360929579,1747152643615,-458.59,0.00010958,2]
[360929581,1747152643624,-1380.69,0.00010958,2]
[360929583,1747152643634,-400.0,0.00010958,2]
[360929585,1747152643643,-1297.27,0.00010958,2]
[360929586,1747152643653,-2024.92,0.00010958,2]
[360929587,1747152643662,-1334.03,0.00010958,2]
[360929588,1747152643671,-704.52,0.00010958,2]
[360929589,1747152643681,-400.0,0.00010958,2]
[360929590,1747152643690,-400.0,0.00010958,2]
[360929591,1747152643701,-400.0,0.00010958,2]
[360929592,1747152643711,-400.0,0.00010958,2]
[360929593,1747152643720,-400.0,0.00010958,2]
[360929594,1747152643730,-4081.35,0.00010958,2]
[360929595,1747152643739,-2169.48,0.00010958,2]
[360929596,1747152643748,-400.0,0.00010958,2]
[360929597,1747152643758,-5512.84,0.00010958,2]
[360929598,1747152643767,-1172.6,0.00010958,2]
[360929599,1747152643777,-400.0,0.00010958,2]
[360929600,1747152643786,-264.57618515,0.00010958,2]
[360929601,1747152643796,-337.12457658,0.00010958,2]
[360929602,1747152643805,-400.0,0.00010958,2]
[360929603,1747152643814,-400.0,0.00010958,2]
[360929604,1747152643824,-1800.62,0.00010958,2]
[360929605,1747152643833,-400.0,0.00010958,2]
[360929606,1747152643842,-400.0,0.00010958,2]
[360929607,1747152643852,-400.0,0.00010958,2]
[360929608,1747152643861,-544.63,0.00010958,2]
[360929609,1747152643871,-400.0,0.00010958,2]
[360929610,1747152643880,-400.0,0.00010958,2]
[360929611,1747152643889,-990.45,0.00010958,2]
[360929612,1747152643898,-400.0,0.00010958,2]
[360929613,1747152643908,-470.38,0.00010958,2]
[360929614,1747152643917,-400.0,0.00010958,2]
[360929615,1747152643926,-400.0,0.00010958,2]
[360929617,1747152643936,-1134.65,0.00010958,2]
[360929619,1747152643945,-346.38813261,0.00010958,2]
[360929621,1747152643956,-400.0,0.00010958,2]
[360929622,1747152643968,-400.0,0.00010958,2]
[360929624,1747152643978,-400.0,0.00010958,2]
[360929626,1747152643987,-506.6,0.00010958,2]
[360929628,1747152643996,-400.0,0.00010958,2]
[360929630,1747152644007,-400.0,0.00010958,2]
[360929632,1747152644016,-408.19,0.00010958,2]
[360929634,1747152644025,-536.7719813,0.00010958,2]
[360929636,1747152644034,-1385.41,0.00010958,2]
[360929638,1747152644047,-655.07,0.00010958,2]
[360929640,1747152644058,-1518.31,0.00010958,2]
[360929642,1747152644067,-450.0,0.00010958,2]
[360929644,1747152644077,-400.0,0.00010958,2]
[360929646,1747152644086,-400.0,0.00010958,2]
[360929648,1747152644095,-1430.02,0.00010958,2]
[360929650,1747152644105,-400.0,0.00010958,2]
[360929652,1747152644115,-400.0,0.00010958,2]
[360929654,1747152644125,-400.0,0.00010958,2]
[360929656,1747152644135,-400.0,0.00010958,2]
[360929658,1747152644145,-485.51,0.00010958,2]
[360929660,1747152644155,-482.74,0.00010958,2]
[360929662,1747152644165,-1153.49,0.00010958,2]
[360929664,1747152644175,-400.0,0.00010958,2]
[360929666,1747152644185,-400.0,0.00010958,2]
[360929668,1747152644195,-400.0,0.00010958,2]
[360929670,1747152644208,-802.81,0.00010958,2]
[360929672,1747152644218,-400.0,0.00010958,2]
[360929674,1747152644228,-400.0,0.00010958,2]
[360929676,1747152644238,-996.39,0.00010958,2]
[360929678,1747152644248,-772.91,0.00010958,2]
[360929680,1747152644258,-1310.2,0.00010958,2]
[360929682,1747152644269,-400.0,0.00010958,2]
[360929684,1747152644278,-400.0,0.00010958,2]
[360929686,1747152644288,-400.0,0.00010958,2]
[360929688,1747152644297,-400.0,0.00010958,2]
[360929690,1747152644307,-400.0,0.00010958,2]
[360929692,1747152644316,-400.0,0.00010958,2]
[360929694,1747152644326,-969.42,0.00010958,2]
[360929696,1747152644336,-405.24,0.00010958,2]
[360929698,1747152644346,-400.0,0.00010958,2]
[360929700,1747152644356,-577.32,0.00010958,2]
[360929702,1747152644365,-400.0,0.00010958,2]
[360929704,1747152644375,-2574.86,0.00010958,2]
[360929706,1747152644386,-879.37,0.00010958,2]
[360929708,1747152644395,-400.0,0.00010958,2]
[360929710,1747152644404,-400.0,0.00010958,2]
[360929711,1747152644414,-1522.88,0.00010958,2]
[360929713,1747152644423,-1588.04,0.00010958,2]
[360929716,1747152644434,-400.0,0.00010958,2]
[360929717,1747152644443,-400.0,0.00010958,2]
[360929719,1747152644455,-854.86,0.00010958,2]
[360929721,1747152644465,-422.11,0.00010958,2]
[360929723,1747152644475,-400.0,0.00010958,2]
[360929725,1747152644484,-400.0,0.00010958,2]
[360929727,1747152644494,-400.0,0.00010958,2]
[360929729,1747152644504,-835.02,0.00010958,2]
[360929731,1747152644514,-415.23204008,0.00010958,2]
[360929733,1747152644523,-400.0,0.00010958,2]
[360929735,1747152644533,-500.0,0.00010958,2]
[360929737,1747152644542,-431.25,0.00010958,2]
[360929739,1747152644552,-500.0,0.00010958,2]
[360929741,1747152644562,-400.0,0.00010958,2]
[360929743,1747152644571,-471.24,0.00010958,2]
[360929745,1747152644580,-400.0,0.00010958,2]
[360929747,1747152644590,-400.0,0.00010958,2]
[360929749,1747152644600,-400.15008665,0.00010958,2]
[360929751,1747152644609,-400.0,0.00010958,2]
[360929753,1747152644618,-949.71,0.00010958,2]
[360929755,1747152644628,-400.0,0.00010958,2]
[360929757,1747152644637,-400.0,0.00010958,2]
[360929759,1747152644647,-785.23,0.00010958,2]
[360929761,1747152644656,-400.0,0.00010958,2]
[360929763,1747152644665,-400.0,0.00010958,2]
[360929764,1747152644675,-400.0,0.00010958,2]
[360929766,1747152644685,-400.0,0.00010958,2]
[360929768,1747152644694,-400.0,0.00010958,2]
[360929770,1747152644705,-990.68,0.00010958,2]
[360929772,1747152644715,-400.0,0.00010958,2]
[360929774,1747152644725,-400.0,0.00010958,2]
[360929776,1747152644734,-400.0,0.00010958,2]
[360929778,1747152644744,-401.2,0.00010958,2]
[360929780,1747152644753,-400.0,0.00010958,2]
[360929783,1747152644767,-400.0,0.00010958,2]
[360929785,1747152644776,-400.0,0.00010958,2]
[360929787,1747152644786,-400.0,0.00010958,2]
[360929789,1747152644796,-801.75,0.00010958,2]
[360929791,1747152644805,-400.0,0.00010958,2]
[360929793,1747152644815,-400.0,0.00010958,2]
[360929795,1747152644824,-597.44,0.00010958,2]
[360929797,1747152644834,-662.96,0.00010958,2]